[Event "Hungarian Youth-ch U10 2022"]
[Site "Eger"]
[Date "2022.07.28"]
[Round "6.4"]
[White "Hegedus, Bernat"]
[Black "Brieber, Benedek"]
[Result "1-0"]
[ECO "D10"]
[WhiteElo "1491"]
[BlackElo "1369"]
[Annotator "NA RC COMBH"]
[PlyCount "55"]
[EventDate "2022.07.21"]
[EventType "tourn"]
[EventCountry "HUN"]
[SourceTitle "playchess.com"]
[Source "ChessBase"]
[SourceQuality "1"]
[TimeControl "40/5400+30:1800+30"]

1. d4 {[%emt 0:01:01]} d5 {[%emt 0:00:40]} 2. c4 {[%emt 0:00:42]} c6 {[%emt 0:00:26]} 3. e3 {[%emt 0:01:09]} e6 {[%emt 0:00:27]} 4. Nf3 {[%emt 0:01:01]} f5 {[%emt 0:01:15]} 5. Ne5 {[%emt 0:03:30]} Nf6 {[%emt 0:00:56]} 6. Be2 {[%emt 0:01:00]} Bd6 {[%emt 0:01:04]} 7. O-O {[%emt 0:02:43]} O-O {[%emt 0:00:38]} 8. Nd2 {[%emt 0:02:54]} Nbd7 {[%emt 0:01:53]} 9. f4 {[%emt 0:01:53]} Ne4 {[%emt 0:08:04]} 10. Ndf3 {[%emt 0:04:40]} Rf6 {[%emt 0:01:26]} 11. Bd2 {[%emt 0:06:38]} Rh6 {[%emt 0:03:05]} 12. Be1 {[%emt 0:02:24]} Qe8 {[%emt 0:06:41]} 13. Ng5 {[%emt 0:08:16]} Nxe5 {[%emt 0:00:53]} 14. dxe5 {[%emt 0:02:21]} Bc5 {[%emt 0:02:21]} 15. Rf3 {[%emt 0:01:36]} Qe7 {[%emt 0:07:09]} 16. cxd5 {[%emt 0:02:04]} cxd5 {[%emt 0:00:32]} 17. Nxe4 {[%emt 0:01:05]} dxe4 {[%emt 0:00:38]} 18. b4 {[%emt 0:01:14]} exf3 {[%emt 0:00:55]} 19. bxc5 {[%emt 0:00:44]} fxe2 {[%emt 0:00:28]} 20. Qxe2 {[%emt 0:00:06]} Qxc5 {[%emt 0:00:21]} 21. Rd1 {[%emt 0:00:21]} Qc7 {[%emt 0:00:47]} 22. Qb5 {[%emt 0:00:08]} Qc6 {[%emt 0:04:19]} 23. Rd8+ {[%emt 0:00:32]} Kf7 {[%emt 0:00:16]} 24. Qb4 {[%emt 0:00:49]} b6 {[%emt 0:05:12]} 25. Rf8+ {[%emt 0:02:15]} Kg6 {[%emt 0:01:44]} 26. Qe7 {[%emt 0:01:05]} Rh5 {[%emt 0:09:16]} 27. Rf6+ {[%emt 0:04:48]} gxf6 {[%emt 0:00:15]} 28. Qxf6# {[%emt 0:00:26]} 1-0

[Event "Hungarian Youth-ch U10 2022"]
[Site "Eger"]
[Date "2022.07.28"]
[Round "6.5"]
[White "Hangay, Oliver"]
[Black "Hegedus, Zsombor"]
[Result "1-0"]
[ECO "C60"]
[WhiteElo "1695"]
[BlackElo "1348"]
[Annotator "NA RC COMBH"]
[PlyCount "133"]
[EventDate "2022.07.21"]
[EventType "tourn"]
[EventCountry "HUN"]
[SourceTitle "playchess.com"]
[Source "ChessBase"]
[SourceQuality "1"]
[TimeControl "40/5400+30:1800+30"]

1. e4 {[%emt 0:00:36]} e5 {[%emt 0:00:51]} 2. Nf3 {[%emt 0:00:08]} Nc6 {[%emt 0:00:16]} 3. Bb5 {[%emt 0:00:11]} Nge7 {[%emt 0:00:41]} 4. c3 {[%emt 0:01:34]} a6 {[%emt 0:00:41]} 5. Ba4 {[%emt 0:00:35]} g6 {[%emt 0:00:46]} 6. O-O {[%emt 0:03:35]} b5 {[%emt 0:03:20]} 7. Bb3 {[%emt 0:03:05]} Bg7 {[%emt 0:01:22]} 8. Re1 {[%emt 0:02:32]} O-O {[%emt 0:01:57]} 9. d3 {[%emt 0:07:50]} d6 {[%emt 0:05:33]} 10. h3 {[%emt 0:00:44]} h6 {[%emt 0:02:40]} 11. Be3 {[%emt 0:03:19]} Kh7 {[%emt 0:04:51]} 12. d4 {[%emt 0:04:22]} exd4 {[%emt 0:03:04]} 13. Nxd4 {[%emt 0:03:00]} Na5 {[%emt 0:03:59]} 14. Nd2 {[%emt 0:03:03]} c5 {[%emt 0:02:54]} 15. N4f3 {[%emt 0:01:18]} Nxb3 {[%emt 0:02:05]} 16. Nxb3 {[%emt 0:02:41]} Nc6 {[%emt 0:05:57]} 17. Bf4 {[%emt 0:05:12]} Ne5 {[%emt 0:04:45]} 18. Bxe5 {[%emt 0:01:20]} Bxe5 {[%emt 0:00:13]} 19. Nxe5 {[%emt 0:02:25]} dxe5 {[%emt 0:02:02]} 20. Nxc5 {[%emt 0:05:47]} Qg5 {[%emt 0:01:48]} 21. Qc1 {[%emt 0:02:17]} Qe7 {[%emt 0:00:57]} 22. Qe3 {[%emt 0:03:13]} Be6 {[%emt 0:01:07]} 23. Nb3 {[%emt 0:11:09]} Rfd8 {[%emt 0:03:46]} 24. Rad1 {[%emt 0:02:13]} Rac8 {[%emt 0:06:34]} 25. Qb6 {[%emt 0:06:50]} Qg5 {[%emt 0:03:56]} 26. Kh1 {[%emt 0:11:16]} Rxd1 {[%emt 0:03:18]} 27. Rxd1 {[%emt 0:00:11]} Qf4 {[%emt 0:00:58]} 28. Qe3 {[%emt 0:02:10]} Qf6 {[%emt 0:01:37]} 29. Rd2 {[%emt 0:03:43]} Rd8 {[%emt 0:02:20]} 30. Kg1 {[%emt 0:01:10]} Bc4 {[%emt 0:04:38]} 31. Nc1 {[%emt 0:02:07]} Rd6 {[%emt 0:01:21]} 32. b3 {[%emt 0:00:45]} Rxd2 {[%emt 0:01:01]} 33. Qxd2 {[%emt 0:00:05]} Be6 {[%emt 0:00:42]} 34. Nd3 {[%emt 0:00:30]} Qd8 {[%emt 0:00:53]} 35. Qc2 {[%emt 0:00:36]} Qc7 {[%emt 0:01:07]} 36. Nb4 {[%emt 0:00:31]} a5 {[%emt 0:00:34]} 37. Nd5 {[%emt 0:01:03]} Qc6 {[%emt 0:01:54]} 38. Qd3 {[%emt 0:01:10]} f5 {[%emt 0:02:32]} 39. f3 {[%emt 0:00:45]} fxe4 {[%emt 0:01:13]} 40. fxe4 {[%emt 0:00:00]} Qc5+ {[%emt 0:00:00]} 41. Qe3 {[%emt 0:01:34]} Qxe3+ {[%emt 0:01:49]} 42. Nxe3 {[%emt 0:00:06]} Kg7 {[%emt 0:00:19]} 43. Nd5 {[%emt 0:00:39]} Kf7 {[%emt 0:00:38]} 44. Kf2 {[%emt 0:00:13]} Bd7 {[%emt 0:00:56]} 45. h4 {[%emt 0:01:56]} Ke6 {[%emt 0:00:45]} 46. Ke3 {[%emt 0:01:56]} Bc6 {[%emt 0:01:41]} 47. c4 {[%emt 0:00:41]} bxc4 {[%emt 0:00:18]} 48. bxc4 {[%emt 0:00:10]} Ba4 {[%emt 0:00:36]} 49. Nc3 {[%emt 0:03:23]} Bc6 {[%emt 0:00:56]} 50. Nb5 {[%emt 0:07:49]} a4 {[%emt 0:04:02]} 51. a3 {[%emt 0:01:15]} Bxb5 {[%emt 0:00:44]} 52. cxb5 {[%emt 0:00:12]} Kd6 {[%emt 0:00:32]} 53. Kd3 {[%emt 0:00:37]} Kc5 {[%emt 0:00:39]} 54. b6 {[%emt 0:00:12]} Kxb6 {[%emt 0:00:04]} 55. Kc4 {[%emt 0:00:06]} Kc6 {[%emt 0:00:19]} 56. Kb4 {[%emt 0:00:51]} Kd6 {[%emt 0:00:08]} 57. Kb5 {[%emt 0:00:20]} g5 {[%emt 0:00:36]} 58. hxg5 {[%emt 0:00:08]} hxg5 {[%emt 0:00:11]} 59. g4 {[%emt 0:00:07]} Kc7 {[%emt 0:00:31]} 60. Kxa4 {[%emt 0:00:19]} Kc6 {[%emt 0:00:15]} 61. Kb4 {[%emt 0:00:45]} Kb6 62. a4 {[%emt 0:00:06]} Ka6 {[%emt 0:00:19]} 63. a5 {[%emt 0:00:04]} Kb7 {[%emt 0:00:11]} 64. Kb5 {[%emt 0:00:08]} Ka7 {[%emt 0:00:15]} 65. a6 {[%emt 0:00:07]} Kb8 {[%emt 0:00:07]} 66. Kc6 {[%emt 0:00:08]} Ka7 {[%emt 0:00:04]} 67. Kd5 1-0

[Event "Hungarian Youth-ch U10 2022"]
[Site "Eger"]
[Date "2022.07.29"]
[Round "7.1"]
[White "Hegedus, Zsombor"]
[Black "Morovan-Szabo, Lorinc"]
[Result "0-1"]
[ECO "C54"]
[WhiteElo "1348"]
[BlackElo "1232"]
[Annotator "NA RC COMBH"]
[PlyCount "36"]
[EventDate "2022.07.21"]
[EventType "tourn"]
[EventCountry "HUN"]
[SourceTitle "playchess.com"]
[Source "ChessBase"]
[SourceQuality "1"]
[TimeControl "40/5400+30:1800+30"]

1. e4 {[%emt 0:00:36]} e5 {[%emt 0:01:14]} 2. Nf3 {[%emt 0:00:51]} Nc6 {[%emt 0:00:15]} 3. Bc4 {[%emt 0:00:20]} Bc5 {[%emt 0:00:22]} 4. c3 {[%emt 0:00:22]} Nf6 {[%emt 0:01:01]} 5. d4 {[%emt 0:00:43]} exd4 {[%emt 0:00:44]} 6. cxd4 {[%emt 0:00:56]} Bb4+ {[%emt 0:00:19]} 7. Bd2 {[%emt 0:00:24]} Bxd2+ {[%emt 0:00:20]} 8. Nbxd2 {[%emt 0:00:14]} d5 {[%emt 0:02:11]} 9. exd5 {[%emt 0:01:04]} Nxd5 {[%emt 0:00:12]} 10. O-O {[%emt 0:01:59]} O-O {[%emt 0:02:14]} 11. Rc1 {[%emt 0:08:16]} Bf5 {[%emt 0:03:13]} 12. Re1 {[%emt 0:02:32]} Nf4 {[%emt 0:03:07]} 13. Nb3 {[%emt 0:14:31]} Qf6 {[%emt 0:04:50]} 14. Qd2 {[%emt 0:08:45]} Bg4 {[%emt 0:06:27]} 15. Ne5 {[%emt 0:09:33]} Nxe5 {[%emt 0:06:44]} 16. dxe5 {[%emt 0:01:57]} Qf5 {[%emt 0:02:40]} 17. Kh1 {[%emt 0:07:49]} Qg5 {[%emt 0:04:27]} 18. Re4 {[%emt 0:03:16]} Bf3 {[%emt 0:00:28]} 0-1

[Event "Hungarian Youth-ch U10 2022"]
[Site "Eger"]
[Date "2022.07.29"]
[Round "7.2"]
[White "Brieber, Benedek"]
[Black "Hangay, Oliver"]
[Result "1/2-1/2"]
[ECO "D00"]
[WhiteElo "1369"]
[BlackElo "1695"]
[Annotator "NA RC COMBH"]
[PlyCount "64"]
[EventDate "2022.07.21"]
[EventType "tourn"]
[EventCountry "HUN"]
[SourceTitle "playchess.com"]
[Source "ChessBase"]
[SourceQuality "1"]
[TimeControl "40/5400+30:1800+30"]

1. d4 {[%emt 0:00:35]} d5 {[%emt 0:00:43]} 2. Nc3 {[%emt 0:00:21]} Nf6 {[%emt 0:00:07]} 3. Bf4 {[%emt 0:00:15]} a6 {[%emt 0:00:33]} 4. Bg5 {[%emt 0:01:47]} Nbd7 {[%emt 0:01:34]} 5. Nf3 {[%emt 0:01:38]} e6 {[%emt 0:01:25]} 6. e3 {[%emt 0:04:27]} Be7 {[%emt 0:01:12]} 7. Be2 {[%emt 0:01:15]} O-O {[%emt 0:00:18]} 8. O-O {[%emt 0:00:17]} c5 {[%emt 0:01:42]} 9. Ne5 {[%emt 0:09:57]} b5 {[%emt 0:07:47]} 10. Nc6 {[%emt 0:01:10]} Qe8 {[%emt 0:00:28]} 11. Nxe7+ {[%emt 0:01:31]} Qxe7 {[%emt 0:00:14]} 12. a3 {[%emt 0:01:16]} c4 {[%emt 0:04:33]} 13. e4 {[%emt 0:03:21]} dxe4 {[%emt 0:02:20]} 14. Nxe4 {[%emt 0:00:24]} h6 {[%emt 0:02:34]} 15. Bxf6 {[%emt 0:02:21]} Nxf6 {[%emt 0:00:15]} 16. Bf3 {[%emt 0:01:00]} Nxe4 {[%emt 0:01:52]} 17. Bxe4 {[%emt 0:00:20]} Bb7 {[%emt 0:00:12]} 18. Bxb7 {[%emt 0:01:02]} Qxb7 {[%emt 0:00:06]} 19. Qg4 {[%emt 0:00:37]} Rad8 {[%emt 0:02:57]} 20. c3 {[%emt 0:01:20]} Rd5 {[%emt 0:03:19]} 21. f4 {[%emt 0:02:46]} Rf5 {[%emt 0:07:21]} 22. Rae1 {[%emt 0:03:22]} a5 {[%emt 0:04:27]} 23. Re5 {[%emt 0:05:14]} Rxe5 {[%emt 0:01:16]} 24. fxe5 {[%emt 0:02:38]} b4 {[%emt 0:01:27]} 25. axb4 {[%emt 0:00:45]} axb4 {[%emt 0:00:23]} 26. Rf3 {[%emt 0:08:55]} bxc3 {[%emt 0:06:20]} 27. bxc3 {[%emt 0:00:28]} Qb1+ {[%emt 0:07:04]} 28. Kf2 {[%emt 0:00:52]} Rb8 {[%emt 0:05:37]} 29. Kg3 {[%emt 0:00:52]} Rb2 {[%emt 0:12:38]} 30. Kh3 {[%emt 0:07:15]} Qc2 {[%emt 0:07:23]} 31. Rg3 {[%emt 0:00:25]} g6 {[%emt 0:01:10]} 32. Qf4 {[%emt 0:02:22]} Qf5+ 1/2-1/2

[Event "Hungarian Youth-ch U10 2022"]
[Site "Eger"]
[Date "2022.07.29"]
[Round "7.3"]
[White "Papai, Mate"]
[Black "Hegedus, Bernat"]
[Result "0-1"]
[ECO "D43"]
[WhiteElo "1385"]
[BlackElo "1491"]
[Annotator "NA RC COMBH"]
[PlyCount "92"]
[EventDate "2022.07.21"]
[EventType "tourn"]
[EventCountry "HUN"]
[SourceTitle "playchess.com"]
[Source "ChessBase"]
[SourceQuality "1"]
[TimeControl "40/5400+30:1800+30"]

1. d4 {[%emt 0:00:39]} Nf6 {[%emt 0:01:19]} 2. c4 {[%emt 0:01:23]} c6 {[%emt 0:00:56]} 3. Nc3 {[%emt 0:01:10]} d5 {[%emt 0:01:10]} 4. Nf3 {[%emt 0:01:47]} e6 {[%emt 0:02:06]} 5. Bf4 {[%emt 0:02:37]} Nbd7 {[%emt 0:01:31]} 6. e3 {[%emt 0:02:15]} Be7 {[%emt 0:04:08]} 7. cxd5 {[%emt 0:02:33]} exd5 {[%emt 0:04:14]} 8. Rc1 {[%emt 0:02:29]} Ne4 {[%emt 0:05:40]} 9. Nxd5 {[%emt 0:02:10]} cxd5 {[%emt 0:06:19]} 10. Bc7 {[%emt 0:01:13]} Bb4+ {[%emt 0:02:00]} 11. Ke2 {[%emt 0:01:06]} Qe7 {[%emt 0:03:53]} 12. Ne5 {[%emt 0:02:40]} b6 {[%emt 0:03:41]} 13. Qa4 {[%emt 0:01:27]} Bb7 {[%emt 0:05:59]} 14. f3 {[%emt 0:05:35]} Nef6 {[%emt 0:01:09]} 15. g4 {[%emt 0:02:13]} Bd6 {[%emt 0:03:29]} 16. Bh3 {[%emt 0:03:14]} g5 {[%emt 0:05:30]} 17. Bg2 {[%emt 0:01:38]} a5 {[%emt 0:02:47]} 18. Kf2 {[%emt 0:04:22]} Ba6 {[%emt 0:03:53]} 19. Bf1 {[%emt 0:02:29]} Bxf1 {[%emt 0:02:13]} 20. Kxf1 {[%emt 0:00:49]} Kf8 {[%emt 0:05:28]} 21. Qc6 {[%emt 0:02:03]} Bxc7 {[%emt 0:02:39]} 22. Qxa8+ {[%emt 0:01:39]} Bb8 {[%emt 0:00:39]} 23. Rc8+ {[%emt 0:05:01]} Kg7 {[%emt 0:00:15]} 24. Rxh8 {[%emt 0:00:51]} Kxh8 {[%emt 0:00:22]} 25. h4 {[%emt 0:01:44]} Kg7 {[%emt 0:04:12]} 26. hxg5 {[%emt 0:00:45]} Bxe5 {[%emt 0:00:27]} 27. dxe5 {[%emt 0:03:08]} Ne8 {[%emt 0:00:25]} 28. Qxd5 {[%emt 0:00:28]} Nxe5 {[%emt 0:00:33]} 29. Qe4 {[%emt 0:00:55]} Ng6 {[%emt 0:01:03]} 30. Qd4+ {[%emt 0:01:39]} Kg8 {[%emt 0:00:14]} 31. Qxb6 {[%emt 0:01:42]} Qxg5 {[%emt 0:00:27]} 32. Rh5 {[%emt 0:01:01]} Qe7 {[%emt 0:00:49]} 33. Rxa5 {[%emt 0:00:45]} Qd7 {[%emt 0:00:52]} 34. Ke2 {[%emt 0:01:45]} Qe7 {[%emt 0:00:43]} 35. Qd4 {[%emt 0:01:03]} Qc7 {[%emt 0:01:25]} 36. Ra8 {[%emt 0:03:25]} Kf8 {[%emt 0:02:44]} 37. Qb4+ {[%emt 0:01:09]} Ne7 {[%emt 0:00:28]} 38. Qd4 {[%emt 0:01:13]} Ng6 {[%emt 0:00:17]} 39. Qe4 {[%emt 0:03:26]} Qh2+ {[%emt 0:00:44]} 40. Kd3 {[%emt 0:00:00]} Qd6+ {[%emt 0:00:00]} 41. Qd4 {[%emt 0:02:48]} Qc6 {[%emt 0:01:56]} 42. Qb4+ {[%emt 0:01:18]} Ne7 {[%emt 0:00:24]} 43. Ra7 {[%emt 0:00:45]} Nd6 {[%emt 0:02:17]} 44. a4 {[%emt 0:03:24]} Qxf3 {[%emt 0:02:03]} 45. Qd4 {[%emt 0:02:41]} Qd1+ {[%emt 0:01:25]} 46. Kc3 {[%emt 0:00:07]} Nd5+ {[%emt 0:00:27]} 0-1

[Event "Hungarian Youth-ch U10 2022"]
[Site "Eger"]
[Date "2022.07.29"]
[Round "7.4"]
[White "Minga-Nagy, Abel Inti"]
[Black "Szollosi, Balazs"]
[Result "1-0"]
[ECO "A45"]
[WhiteElo "1540"]
[BlackElo "1423"]
[Annotator "NA RC COMBH"]
[PlyCount "111"]
[EventDate "2022.07.21"]
[EventType "tourn"]
[EventCountry "HUN"]
[SourceTitle "playchess.com"]
[Source "ChessBase"]
[SourceQuality "1"]
[TimeControl "40/5400+30:1800+30"]

1. d4 {[%emt 0:00:34]} Nf6 {[%emt 0:00:43]} 2. Bf4 {[%emt 0:00:13]} d5 {[%emt 0:00:38]} 3. e3 {[%emt 0:00:15]} Bf5 {[%emt 0:00:38]} 4. c3 {[%emt 0:00:30]} c6 {[%emt 0:00:31]} 5. Nd2 {[%emt 0:01:28]} Nbd7 {[%emt 0:00:38]} 6. h3 {[%emt 0:00:47]} e6 {[%emt 0:00:30]} 7. Ngf3 {[%emt 0:01:16]} Be7 {[%emt 0:00:40]} 8. Be2 {[%emt 0:02:07]} O-O {[%emt 0:01:58]} 9. O-O {[%emt 0:00:45]} c5 {[%emt 0:04:49]} 10. Nh4 {[%emt 0:03:19]} Bg6 {[%emt 0:01:23]} 11. Nxg6 {[%emt 0:00:29]} hxg6 {[%emt 0:01:30]} 12. Nf3 {[%emt 0:03:33]} c4 {[%emt 0:01:04]} 13. Ne5 {[%emt 0:01:40]} Nxe5 {[%emt 0:01:09]} 14. Bxe5 {[%emt 0:00:37]} Bd6 {[%emt 0:01:29]} 15. Bxd6 {[%emt 0:01:55]} Qxd6 16. b3 {[%emt 0:03:30]} b5 {[%emt 0:02:33]} 17. a4 {[%emt 0:01:10]} a6 {[%emt 0:01:54]} 18. axb5 {[%emt 0:00:50]} axb5 {[%emt 0:00:26]} 19. bxc4 {[%emt 0:01:08]} bxc4 20. Qc2 {[%emt 0:01:19]} Rxa1 {[%emt 0:18:01]} 21. Rxa1 {[%emt 0:03:02]} Qb6 {[%emt 0:05:15]} 22. f3 {[%emt 0:02:32]} e5 {[%emt 0:00:31]} 23. Qb1 {[%emt 0:00:04]} Qxb1+ {[%emt 0:00:18]} 24. Rxb1 exd4 25. exd4 {[%emt 0:00:37]} Ra8 {[%emt 0:01:06]} 26. g4 {[%emt 0:00:53]} g5 {[%emt 0:00:37]} 27. Kf2 {[%emt 0:00:46]} Ra3 {[%emt 0:04:56]} 28. Rc1 {[%emt 0:00:10]} Kf8 {[%emt 0:00:23]} 29. Ke3 {[%emt 0:00:09]} Ke7 {[%emt 0:00:25]} 30. Kd2 {[%emt 0:00:06]} Ra2+ {[%emt 0:00:45]} 31. Rc2 {[%emt 0:00:14]} Rxc2+ {[%emt 0:00:23]} 32. Kxc2 {[%emt 0:00:07]} Kd6 {[%emt 0:00:11]} 33. Kd2 {[%emt 0:00:46]} Ke6 {[%emt 0:01:29]} 34. Bd1 {[%emt 0:00:35]} Kd6 {[%emt 0:01:14]} 35. Ke3 {[%emt 0:00:17]} Ke6 {[%emt 0:00:57]} 36. Bc2 {[%emt 0:00:28]} Kd6 {[%emt 0:01:09]} 37. f4 gxf4+ {[%emt 0:00:26]} 38. Kxf4 {[%emt 0:00:26]} Nd7 {[%emt 0:06:51]} 39. h4 {[%emt 0:00:47]} Nf6 {[%emt 0:00:27]} 40. g5 {[%emt 0:00:00]} Nd7 {[%emt 0:00:00]} 41. h5 {[%emt 0:01:47]} Ke7 {[%emt 0:01:33]} 42. Kf5 {[%emt 0:01:22]} Kf8 {[%emt 0:00:51]} 43. Ba4 {[%emt 0:01:04]} Nb6 {[%emt 0:01:06]} 44. Bc6 {[%emt 0:00:28]} Kg8 {[%emt 0:00:37]} 45. g6 {[%emt 0:01:30]} f6 {[%emt 0:05:37]} 46. Ke6 {[%emt 0:00:52]} Kf8 {[%emt 0:01:46]} 47. Bxd5 {[%emt 0:00:39]} f5 {[%emt 0:01:45]} 48. Bc6 {[%emt 0:00:47]} f4 {[%emt 0:00:40]} 49. Ke5 {[%emt 0:00:50]} f3 {[%emt 0:01:06]} 50. Bxf3 {[%emt 0:00:14]} Na4 {[%emt 0:00:13]} 51. Kd5 {[%emt 0:00:17]} Nxc3+ {[%emt 0:00:36]} 52. Kxc4 {[%emt 0:00:10]} Na4 {[%emt 0:00:34]} 53. d5 {[%emt 0:00:38]} Nb6+ {[%emt 0:00:22]} 54. Kc5 {[%emt 0:00:21]} Nd7+ {[%emt 0:01:16]} 55. Kd6 {[%emt 0:00:11]} Nf6 {[%emt 0:00:28]} 56. Kc7 {[%emt 0:00:38]} 1-0

[Event "Hungarian Youth-ch U10 2022"]
[Site "Eger"]
[Date "2022.07.29"]
[Round "7.5"]
[White "Meszaros-Csonka, David"]
[Black "Molnar-Saska, Tamas"]
[Result "1-0"]
[ECO "D00"]
[WhiteElo "1361"]
[BlackElo "1455"]
[Annotator "NA RC COMBH"]
[PlyCount "73"]
[EventDate "2022.07.21"]
[EventType "tourn"]
[EventCountry "HUN"]
[SourceTitle "playchess.com"]
[Source "ChessBase"]
[SourceQuality "1"]
[TimeControl "40/5400+30:1800+30"]

1. d4 {[%emt 0:00:48]} d5 {[%emt 0:01:13]} 2. Bf4 {[%emt 0:00:18]} Nf6 {[%emt 0:00:48]} 3. e3 {[%emt 0:00:31]} Bf5 {[%emt 0:01:47]} 4. Nf3 {[%emt 0:08:40]} e6 {[%emt 0:01:43]} 5. c4 {[%emt 0:04:36]} c5 {[%emt 0:01:41]} 6. Bxb8 {[%emt 0:09:31]} Qa5+ {[%emt 0:02:46]} 7. Nc3 {[%emt 0:01:03]} Rxb8 {[%emt 0:00:18]} 8. Qa4+ {[%emt 0:00:47]} Qxa4 {[%emt 0:00:47]} 9. Nxa4 {[%emt 0:00:09]} cxd4 {[%emt 0:02:34]} 10. Nxd4 {[%emt 0:01:29]} Bb4+ {[%emt 0:01:45]} 11. Nc3 {[%emt 0:02:15]} Bg6 {[%emt 0:04:56]} 12. a3 {[%emt 0:06:06]} Bxc3+ {[%emt 0:07:34]} 13. bxc3 {[%emt 0:00:24]} dxc4 {[%emt 0:00:48]} 14. Bxc4 {[%emt 0:00:10]} O-O {[%emt 0:01:36]} 15. Bb3 {[%emt 0:02:22]} Rbc8 {[%emt 0:03:03]} 16. c4 {[%emt 0:06:32]} Bd3 {[%emt 0:04:30]} 17. Rc1 {[%emt 0:03:31]} e5 {[%emt 0:02:26]} 18. Ne2 {[%emt 0:10:35]} Rc5 {[%emt 0:00:00]} 19. Rc3 {[%emt 0:03:55]} Rd8 {[%emt 0:06:46]} 20. Nc1 {[%emt 0:05:11]} e4 {[%emt 0:06:52]} 21. Nxd3 {[%emt 0:03:22]} exd3 {[%emt 0:00:13]} 22. f3 {[%emt 0:02:28]} b5 {[%emt 0:03:19]} 23. Kd2 {[%emt 0:02:21]} bxc4 {[%emt 0:01:52]} 24. Rxc4 {[%emt 0:03:02]} Rb5 {[%emt 0:02:06]} 25. Rb4 {[%emt 0:05:34]} Rxb4 {[%emt 0:06:24]} 26. axb4 {[%emt 0:00:11]} g5 {[%emt 0:00:41]} 27. Ra1 {[%emt 0:00:44]} Rd7 {[%emt 0:02:47]} 28. g4 {[%emt 0:02:58]} h5 {[%emt 0:01:35]} 29. h3 {[%emt 0:00:14]} hxg4 {[%emt 0:01:34]} 30. hxg4 {[%emt 0:00:08]} Nh7 {[%emt 0:02:17]} 31. Bc4 {[%emt 0:01:59]} Nf6 {[%emt 0:04:26]} 32. Ra5 {[%emt 0:00:32]} Kg7 {[%emt 0:01:01]} 33. Rxg5+ {[%emt 0:00:26]} Kh6 {[%emt 0:00:06]} 34. Ra5 {[%emt 0:00:18]} Kg6 {[%emt 0:00:37]} 35. Bxd3+ {[%emt 0:00:17]} Kg7 {[%emt 0:00:31]} 36. e4 {[%emt 0:02:44]} Kh6 {[%emt 0:01:23]} 37. g5+ {[%emt 0:00:08]} 1-0

[Event "Hungarian Youth-ch U10 2022"]
[Site "Eger"]
[Date "2022.07.30"]
[Round "8.1"]
[White "Morovan-Szabo, Lorinc"]
[Black "Molnar-Saska, Tamas"]
[Result "0-1"]
[ECO "B28"]
[WhiteElo "1232"]
[BlackElo "1455"]
[Annotator "NA RC COMBH"]
[PlyCount "122"]
[EventDate "2022.07.21"]
[EventType "tourn"]
[EventCountry "HUN"]
[SourceTitle "playchess.com"]
[Source "ChessBase"]
[SourceQuality "1"]
[TimeControl "40/5400+30:1800+30"]

1. e4 {[%emt 0:00:48]} c5 {[%emt 0:01:22]} 2. Nf3 {[%emt 0:00:29]} a6 {[%emt 0:00:12]} 3. d4 {[%emt 0:00:50]} cxd4 {[%emt 0:00:07]} 4. Nxd4 {[%emt 0:00:10]} e5 {[%emt 0:00:11]} 5. Nf3 {[%emt 0:00:37]} Nf6 {[%emt 0:00:20]} 6. Bc4 {[%emt 0:00:31]} Be7 {[%emt 0:03:00]} 7. O-O {[%emt 0:01:56]} d6 {[%emt 0:02:20]} 8. Nc3 {[%emt 0:01:25]} Nbd7 9. a4 {[%emt 0:00:45]} Nc5 {[%emt 0:05:47]} 10. Re1 {[%emt 0:03:11]} Bg4 {[%emt 0:03:51]} 11. h3 {[%emt 0:00:24]} Bh5 {[%emt 0:01:40]} 12. b4 {[%emt 0:03:50]} Ncd7 {[%emt 0:02:16]} 13. Be3 {[%emt 0:01:25]} O-O {[%emt 0:01:13]} 14. Bd5 {[%emt 0:03:00]} Rc8 {[%emt 0:05:08]} 15. Bd2 {[%emt 0:01:34]} Rc7 {[%emt 0:03:00]} 16. Qe2 {[%emt 0:02:51]} Nb6 {[%emt 0:04:24]} 17. Bxb7 {[%emt 0:01:35]} Rxb7 {[%emt 0:02:34]} 18. a5 {[%emt 0:00:32]} Nbd7 {[%emt 0:01:16]} 19. Qxa6 {[%emt 0:00:23]} Qa8 {[%emt 0:01:48]} 20. Qc4 {[%emt 0:01:18]} Ra7 {[%emt 0:06:23]} 21. Nb5 {[%emt 0:01:07]} Rc8 {[%emt 0:07:44]} 22. Qd3 {[%emt 0:05:01]} Ra6 {[%emt 0:04:51]} 23. Na3 {[%emt 0:03:01]} d5 {[%emt 0:02:41]} 24. exd5 {[%emt 0:00:29]} e4 {[%emt 0:00:13]} 25. Qd4 {[%emt 0:00:55]} Bxb4 {[%emt 0:03:10]} 26. Bxb4 {[%emt 0:00:24]} exf3 {[%emt 0:00:44]} 27. g4 {[%emt 0:00:16]} Bg6 {[%emt 0:02:00]} 28. c4 {[%emt 0:01:32]} Qa7 {[%emt 0:03:49]} 29. Qxa7 {[%emt 0:08:56]} Rxa7 {[%emt 0:00:16]} 30. h4 {[%emt 0:01:08]} Raa8 {[%emt 0:06:22]} 31. h5 {[%emt 0:00:53]} Bd3 {[%emt 0:03:34]} 32. Rac1 {[%emt 0:01:19]} h6 {[%emt 0:02:32]} 33. Rc3 {[%emt 0:00:39]} Be2 {[%emt 0:02:08]} 34. Rec1 {[%emt 0:01:34]} Nc5 {[%emt 0:01:57]} 35. Nb5 {[%emt 0:01:38]} Nd3 {[%emt 0:02:27]} 36. Rb1 {[%emt 0:00:31]} Nxb4 {[%emt 0:01:23]} 37. Rxb4 {[%emt 0:00:12]} Rxa5 {[%emt 0:03:33]} 38. Nd6 {[%emt 0:02:22]} Nxd5 {[%emt 0:01:01]} 39. cxd5 {[%emt 0:00:42]} Rxc3 {[%emt 0:00:33]} 40. Rb8+ {[%emt 0:00:00]} Kh7 {[%emt 0:00:00]} 41. Nxf7 {[%emt 0:00:46]} g6 {[%emt 0:01:15]} 42. hxg6+ {[%emt 0:00:22]} Kxg6 {[%emt 0:00:32]} 43. Ne5+ {[%emt 0:00:20]} Kf6 {[%emt 0:05:46]} 44. Nd7+ {[%emt 0:01:14]} Ke7 {[%emt 0:01:19]} 45. Rb7 {[%emt 0:00:20]} Kd6 {[%emt 0:01:59]} 46. Nf6 {[%emt 0:00:36]} Rc1+ {[%emt 0:01:56]} 47. Kh2 {[%emt 0:00:33]} Raa1 {[%emt 0:00:41]} 48. Ne4+ Kxd5 {[%emt 0:02:25]} 49. Ng3 {[%emt 0:00:00]} Ra4 {[%emt 0:02:19]} 50. Rd7+ {[%emt 0:00:23]} Ke6 {[%emt 0:01:07]} 51. Rh7 {[%emt 0:00:38]} Rxg4 {[%emt 0:00:44]} 52. Rxh6+ {[%emt 0:00:14]} Kf7 {[%emt 0:00:46]} 53. Rh5 {[%emt 0:00:56]} Rcc4 {[%emt 0:01:24]} 54. Kh3 {[%emt 0:01:14]} Kg6 {[%emt 0:00:17]} 55. Rh8 {[%emt 0:00:40]} Kg7 {[%emt 0:01:11]} 56. Rh5 {[%emt 0:00:16]} Bd3 {[%emt 0:00:59]} 57. Ne4 {[%emt 0:02:07]} Bxe4 {[%emt 0:01:03]} 58. Ra5 {[%emt 0:00:17]} Rg1 {[%emt 0:01:47]} 59. Re5 {[%emt 0:00:51]} Kf6 {[%emt 0:00:41]} 60. Ra5 {[%emt 0:01:49]} Bf5+ {[%emt 0:00:14]} 61. Kh2 {[%emt 0:00:42]} Rg2+ {[%emt 0:00:16]} 0-1